Cogmind - Beta 16 @@@ ROGUE MODE // 2025.12.31 @ 01:41:14 Player: C4PT41N Result: Destroyed by H-55 Commando with Assault Rifle Performance ------------- Evolutions (3) 1500 Regions Visited (7) 1400 Robots Destroyed (63) 315 Value Destroyed (1669) 1669 Prototype IDs (3) 60 Alien Tech Used (0) 0 Bonus (300) 300 TOTAL SCORE: 5244 Bonus ------- Aligned with FarCom 300 Cogmind --------- Core Integrity 0/700 Matter 165/300 Energy 100/100 System Corruption 0% Temperature Cool (0) Movement Core (700) Ox13 Location -7/Factory Parts ------- > --- POWER (2) -------- (None) > --- PROPULSION (2) --- (None) > --- UTILITY (6) ------ High-capacity Storage Unit Modified TNC > --- WEAPON (3) ------- (None) > --- INVENTORY (20) --- Carbon-fiber Leg Improved Titanium Leg Potential Leg Advanced ECM Suite Hardened Light Armor Plating Field Laser Heavy Laser Minigun Plasma Cutter Peak State ------------ > --- POWER ------------ Light Ion Engine > --- PROPULSION ------- Potential Leg Potential Leg > --- UTILITY ---------- Improved Heat Sink High-capacity Storage Unit Modified TNC Reaction Control System Shield Generator > --- WEAPON ----------- Heavy Laser Guided Plasma Cannon Welding Torch > --- INVENTORY -------- Carbon-fiber Leg Sensor Array Seismic Detector Targeting Computer Hardened Light Armor Plating Field Laser Minigun Plasma Cutter [Rating: 50] Favorites ----------- Power Light Angular Momentum Engine Engine Light Angular Momentum Engine Power Core Light Nuclear Core Propulsion Aluminum Leg Leg Aluminum Leg Wheel Wheel Utility Sensor Array Device Sensor Array Storage High-capacity Storage Unit Processor Targeting Computer Protection Hardened Light Armor Plating Weapon Minigun Energy Gun Heavy Laser Energy Cannon Beam Cannon Ballistic Gun Minigun Launcher Heavy Missile Launcher Special Weapon Welding Torch Build | -11 -10 -9 -9 -9 -8 -8 -7 ------- Run | Yrd Mat Mat Min Exi Min Mat Fac Slots Evolved 6 | . . 2 . . . 2 2 Power 1 | . . . . . . . 1 Propulsion . | . . . . . . . . Utility 4 | . . 2 . . . 1 1 Weapon 1 | . . . . . . 1 . Parts Attached 54 | 9 8 11 8 5 2 4 7 Power 9 | 2 1 1 3 . 1 . 1 Engine 5 | 2 . . 2 . 1 . . Core 4 | . 1 1 1 . . . 1 Reactor . | . . . . . . . . Propulsion 13 | 2 3 2 2 2 . . 2 Treads . | . . . . . . . . Leg 11 | 2 3 2 2 2 . . . Wheel 2 | . . . . . . . 2 Hover . | . . . . . . . . Flight . | . . . . . . . . Utility 18 | 3 1 5 3 2 1 2 1 Device 10 | 3 . 3 1 . 1 2 . Storage 1 | . . . . 1 . . . Processor 3 | . . 1 . 1 . . 1 Hackware . | . . . . . . . . Protection 4 | . 1 1 2 . . . . Artifact . | . . . . . . . . Weapon 14 | 2 3 3 . 1 . 2 3 Energy Gun 6 | 1 1 1 . . . 1 2 Energy Cannon 3 | . 2 . . 1 . . . Ballistic Gun 3 | 1 . 2 . . . . . Ballistic Cannon . | . . . . . . . . Launcher 1 | . . . . . . . 1 Special Weapon 1 | . . . . . . 1 . Impact Weapon . | . . . . . . . . Slashing Weapon . | . . . . . . . . Piercing Weapon . | . . . . . . . . Special Melee Weapon . | . . . . . . . . Unidentified Prototypes 3 | . . . . 3 . . . Parts Lost 19 | . 2 . 1 . 2 5 9 Power 4 | . . . 1 . 1 1 1 Propulsion 2 | . . . . . . . 2 Utility 8 | . 2 . . . . 2 4 Weapon 5 | . . . . . 1 2 2 Highest Loss Streak 9 | . 2 . 1 . 1 3 9 To Critical Strikes . | . . . . . . . . Average Backups 5 | 1 4 3 4 5 8 7 7 Power . | . 1 . . . . . . Propulsion . | . 1 1 . . 1 1 2 Utility 2 | . 1 . 1 2 3 3 1 Weapon 1 | . 1 . . . 1 1 2 Tool/Special . | . . . . . . . . Unused Backups 8 | . 1 . 1 1 1 1 3 Power 1 | . . . . 1 . . . Propulsion 1 | . . . . . . . 1 Utility 3 | . . . 1 . . 1 1 Weapon 2 | . 1 . . . 1 . . Tool/Special 1 | . . . . . . . 1 Average Slot Usage (%) 91 | . 90 86 99 99 87 92 68 Engine 7 | . 6 4 8 11 8 7 . Core 1 | . 5 5 2 . . . . Leg 21 | . 27 22 22 22 22 18 4 Device 18 | . 20 30 22 12 11 24 19 Storage 5 | . . . . 9 11 9 7 Processor 8 | . . 2 11 11 11 9 14 Protection 6 | . 2 1 11 10 11 . . Energy Gun 3 | . 7 4 . . . 8 9 Energy Cannon 3 | . 10 5 . . 5 8 . Ballistic Gun 12 | . 7 9 22 21 7 . . Peak Build Rating 50 | 9 11 18 21 46 47 50 45 Average Rating 22 | 5 8 13 17 22 40 48 28 On Entrance 21 | . 9 6 18 21 40 42 35 Avg Prop Armor Cover (%) 14 | . . . . . 14 . . Naked Turns . | . . . . . . . . Heaviest Build 62 | 11 13 18 22 61 59 62 54 Greatest Support 60 | 20 20 20 25 60 60 60 60 Greatest Overweight (x) 19 | . . . . 2 19 1 16 Average Overweight (x) . | . . . . 1 . . 1 Largest Inventory Capacity 20 | 5 5 5 5 20 20 20 20 Average Capacity 12 | 5 5 5 5 17 20 20 20 Most Carried 11 | 3 5 5 5 9 11 9 11 Average Carried 5 | 1 4 3 4 5 8 7 7 Final Capacity 20 | 5 5 5 5 20 20 20 20 Final Carried 9 | 3 4 5 5 8 9 8 9 Class Distribution -------------------- 83% | Mutant 11% | Skirmisher 5% | Scavenger-Mutant Dominant Class ---------------- Mutant | -10/Materials Mutant | -9/Materials Mutant | -9/Mines Mutant | -9/Exiles Mutant | -8/Mines Skirmisher | -8/Materials Mutant | -7/Factory Resources | -11 -10 -9 -9 -9 -8 -8 -7 ----------- Run | Yrd Mat Mat Min Exi Min Mat Fac Matter Collected 1419 | 314 223 245 328 . 252 23 34 Remotely . | . . . . . . . . Salvage Created 1818 | 108 513 310 186 . 376 43 282 Parts 106 | 12 28 18 12 . 18 2 16 Haulers Intercepted 2 | . . . . . . . 2 Recyclers Shooed . | . . . . . . . . Parts Field Recycled . | . . . . . . . . Retrieved Matter . | . . . . . . . . Parts Self-Destructed . | . . . . . . . . Prevented . | . . . . . . . . Parts Restored . | . . . . . . . . Kills | -11 -10 -9 -9 -9 -8 -8 -7 ------- Run | Yrd Mat Mat Min Exi Min Mat Fac Combat Hostiles Destroyed 51 | 1 17 9 7 . 10 3 4 Guns 30 | 1 7 9 7 . 4 . 2 Cannons 17 | . 8 . . . 6 3 . AOE 2 | . . . . . . . 2 Classes Destroyed 11 | 2 3 1 1 . 1 . 3 Worker 1 | . 1 . . . . . . Builder 2 | . . . . . . . 2 Tunneler 4 | 3 . . . . . . 1 Hauler 2 | . . . . . . . 2 Recycler 1 | . . . . . . . 1 Watcher 2 | . 1 . . . . . 1 Swarmer 17 | . 5 2 3 . 4 3 . Grunt 30 | 1 12 5 3 . 5 . 4 Duelist 1 | . . . . . 1 . . Sentry 2 | . . 2 . . . . . Demolisher 1 | . . . 1 . . . . Best Kill Streak 7 | 1 4 5 3 . 4 3 7 Combat Bots Only 5 | 1 4 5 3 . 4 3 3 Max Kills in Single Turn 4 | 1 2 1 1 . 1 1 4 Gunslinging 1 | . 1 . . . . . . Exploded 1 | . . . . . . . 1 Melee . | . . . . . . . . Uniques/NPCs Destroyed . | . . . . . . . . Combat | -11 -10 -9 -9 -9 -8 -8 -7 -------- Run | Yrd Mat Mat Min Exi Min Mat Fac Hostile Shots Fired 481 | 4 104 28 22 . 59 110 154 Missed 162 | 1 35 6 7 . 20 50 43 Hits 319 | 3 69 22 15 . 39 60 111 Projectile 319 | 3 69 22 15 . 39 60 111 AOE 4 | . . . 3 . . 1 . Critical Strikes 8 | . 1 1 . . 3 . 3 Actively Blocked 1 | . 1 . . . . . . Damage Taken 3762 | 33 737 288 248 . 545 594 1317 Core 1065 | 11 60 39 34 . 84 129 708 Absorbed by Shields 37 | . . . . . . 37 . Redirected to Shielding 51 | . 51 . . . . . . Regen/Repaired (Parts) 90 | . . 90 . . . . . Core Remaining (%) 75 | 95 71 . . . 60 76 . Volleys Fired 164 | 8 64 20 17 . 29 6 20 Largest 3 | 2 2 2 2 . 1 1 3 Hottest 201 | 70 120 50 50 . 120 120 201 Shots Fired 250 | 16 101 40 34 . 31 6 22 Gun 180 | 16 53 40 34 . 22 1 14 Cannon 62 | . 48 . . . 9 5 . Launcher 8 | . . . . . . . 8 Special . | . . . . . . . . Kinetic 133 | 8 29 40 34 . 22 . . Thermal 109 | 8 72 . . . 9 6 14 Explosive 8 | . . . . . . . 8 Electromagnetic . | . . . . . . . . Robot Hit Streak 18 | 4 5 5 7 . 15 18 5 Robot Miss Streak 6 | 1 6 6 3 . 3 . 3 Penetration Max . | . . . . . . . . Secondary Targets 3 | . 1 1 1 . . . . Max Gunslinging Chain 1 | . 1 1 1 . . . . Shots Hit Robots 144 | 8 53 21 22 . 23 5 12 Core Hits 82 | 5 20 11 10 . 15 2 19 Critical Kills 3 | . 3 . . . . . . Critical Parts Destroyed 1 | . . . 1 . . . . Critical Strikes 6 | 1 3 . 1 . . . 1 Burn 2 | 1 . . . . . . 1 Meltdown 2 | . 2 . . . . . . Destroy 2 | . 1 . 1 . . . . Melee Attacks . | . . . . . . . . Impact . | . . . . . . . . Slashing . | . . . . . . . . Piercing . | . . . . . . . . Sneak Attacks . | . . . . . . . . Combat Hostiles . | . . . . . . . . Follow-up Attacks . | . . . . . . . . Damage Inflicted 3332 | 124 887 377 371 . 581 199 793 Guns 1682 | 124 374 377 371 . 249 19 168 Cannons 973 | . 472 . . . 321 180 . Explosions 625 | . . . . . . . 625 Melee . | . . . . . . . . Ramming 52 | . 41 . . . 11 . . Kinetic 1281 | 61 223 377 371 . 249 . . Thermal 1374 | 63 623 . . . 321 199 168 Explosive 625 | . . . . . . . 625 Electromagnetic . | . . . . . . . . Impact . | . . . . . . . . Slashing . | . . . . . . . . Piercing . | . . . . . . . . Highest Corruption 1 | . . 1 1 1 1 . . Average Corruption 1 | . . 1 1 1 1 . . Corruption Purged . | . . . . . . . . Corruption Blocked . | . . . . . . . . Effects 21 | . . . 7 9 5 . . Message Errors 8 | . . . 3 4 1 . . Matter Fused 7 | . . . 3 4 . . . Heat Flow Errors 1 | . . . 1 . . . . Parts Fused 1 | . . . . . 1 . . Data Loss (minor) 2 | . . . . 1 1 . . Misfires 2 | . . . . . 2 . . Overload Shots . | . . . . . . . . Overflow Damage 66 | . . . . . . 39 27 Projectiles 39 | . . . . . . 39 . Explosions 27 | . . . . . . . 27 Melee . | . . . . . . . . Knockbacks . | . . . . . . . . Impact . | . . . . . . . . Kinetic . | . . . . . . . . Secondary . | . . . . . . . . Self-Inflicted Damage 40 | . . . . . . . 40 Shots 2 | . . . . . . . 2 Rammed . | . . . . . . . . Targets Rammed 20 | . 18 . . . 2 . . Kicked 20 | . 18 . . . 2 . . Crushed . | . . . . . . . . Highest Temperature 414 | 6 414 47 199 . 368 40 198 Average Temperature 95 | 3 125 15 38 . 111 22 91 Received Heat Transfer 1122 | 18 294 111 18 . 306 54 321 Effects 7 | . 6 . . . 1 . . Shutdowns 1 | . 1 . . . . . . Energy Bleed 1 | . 1 . . . . . . Interference 2 | . 2 . . . . . . Matter Decay 1 | . . . . . 1 . . Short Circuit 1 | . 1 . . . . . . Damage (minor) 1 | . 1 . . . . . . Siege Activations . | . . . . . . . . Martial Activations . | . . . . . . . . Shielding Activations . | . . . . . . . . Robots Disrupted . | . . . . . . . . Combat Hostiles . | . . . . . . . . Robots Corrupted 1 | . 1 . . . . . . Combat Hostiles 1 | . 1 . . . . . . Parts Fried . | . . . . . . . . Impact Corruptions 1 | . 1 . . . . . . Robots Melted 2 | . 2 . . . . . . Combat Hostiles 1 | . 1 . . . . . . Parts Melted 9 | 1 7 . . . 1 . . Heat Transferred 3266 | 259 1443 . . . 720 437 407 Parts Sabotaged . | . . . . . . . . Parts Stolen . | . . . . . . . . Parts Stripped . | . . . . . . . . Power Chain Reactions . | . . . . . . . . Alert | -11 -10 -9 -9 -9 -8 -8 -7 ------- Run | Yrd Mat Mat Min Exi Min Mat Fac Maximum Alert Level . | . . . . . . . . Low Security (%) 100 | 100 100 100 100 . 100 100 100 Level 1 . | . . . . . . . . Level 2 . | . . . . . . . . Level 3 . | . . . . . . . . Level 4 . | . . . . . . . . Level 5 . | . . . . . . . . High Security . | . . . . . . . . Max Security . | . . . . . . . . Peak Influence 183 | 20 183 141 62 . 102 30 140 Initial 49 | . . 49 47 . . . 4 Average 29 | 2 70 27 11 . 33 2 20 Influence Increases 1522 | 35 471 251 160 . 320 60 225 Destroy 0b10 Robot/C 1020 | 20 340 180 140 . 200 60 80 Destroy 0b10 Robot/NC 60 | 15 10 . . . . . 35 Destroy Leader 178 | . 82 40 20 . 30 . 6 Successful Hack 50 | . 19 31 . . . . . Disable Machine 60 | . . . . . . . 60 Destroy Structure 49 | . 5 . . . . . 44 Lose Combat Pursuer 105 | . 15 . . . 90 . . Influence Decreases 1454 | 35 354 245 283 . 320 50 167 Entered New Map 150 | . . 68 76 . . . 6 Time Decay 1134 | 35 334 177 197 . 300 20 71 Lost Part 170 | . 20 . 10 . 20 30 90 Squads Dispatched 14 | . 6 3 . . . 1 4 Investigation 7 | . 5 1 . . . 1 . Extermination . | . . . . . . . . Reinforcement 6 | . 1 2 . . . . 3 Assault . | . . . . . . . . Garrison 1 | . . . . . . . 1 Intercept . | . . . . . . . . Searches Triggered . | . . . . . . . . Construction Impeded 1 | . . . . . . . 1 Haulers Reinforced 2 | . . . . . . . 2 Active Scanning Responses . | . . . . . . . . Cargo Convoy Interrupts . | . . . . . . . . Stealth | -11 -10 -9 -9 -9 -8 -8 -7 --------- Run | Yrd Mat Mat Min Exi Min Mat Fac Distress Signals 10 | . 2 5 . . . 1 2 Communications Jammed . | . . . . . . . . Distress Signals . | . . . . . . . . Times Spotted 93 | 1 25 21 10 . 16 11 9 Peak Tracking Total 6 | 1 5 6 3 . 4 6 3 Tactical Retreats 7 | . 1 4 . . 2 . . ECM-based Alert Blocks 8 | . . 8 . . . . . Traps | -11 -10 -9 -9 -9 -8 -8 -7 ------- Run | Yrd Mat Mat Min Exi Min Mat Fac Traps Triggered 6 | . 4 . . . . 1 1 Indirectly . | . . . . . . . . Trap Hack Attempts . | . . . . . . . . Triggered . | . . . . . . . . Disarmed . | . . . . . . . . Reprogrammed . | . . . . . . . . Reused . | . . . . . . . . Traps Extracted . | . . . . . . . . Installed . | . . . . . . . . Triggered . | . . . . . . . . Most Traps Carried 1 | . . . 1 . . . . Machines | -11 -10 -9 -9 -9 -8 -8 -7 ---------- Run | Yrd Mat Mat Min Exi Min Mat Fac Machines Disabled 4 | . . . . . . . 4 Max in Single Turn 2 | . . . . . . . 2 Machines Repaired . | . . . . . . . . Machines Dismantled . | . . . . . . . . Machines Sabotaged . | . . . . . . . . Overloaded Fab Kills . | . . . . . . . . Hacking | -11 -10 -9 -9 -9 -8 -8 -7 --------- Run | Yrd Mat Mat Min Exi Min Mat Fac Machines Accessed 8 | . 4 3 . 1 . . . Terminals 6 | . 4 2 . . . . . Fabricators . | . . . . . . . . Repair Stations 1 | . . 1 . . . . . Recycling Units . | . . . . . . . . Scanalyzers . | . . . . . . . . Garrison Access . | . . . . . . . . Total Hacks 41 | . 10 8 . 23 . . . Successful 31 | . 4 4 . 23 . . . Failed 10 | . 6 4 . . . . . Catastrophic 1 | . 1 . . . . . . Database Lockouts . | . . . . . . . . Manual 5 | . . . . 5 . . . Terminals 14 | . 10 4 . . . . . Fabricators . | . . . . . . . . Repair Stations 4 | . . 4 . . . . . Recycling Units . | . . . . . . . . Scanalyzers . | . . . . . . . . Garrison Access . | . . . . . . . . Terminal Hacks 29 | . 4 2 . 23 . . . Record 23 | . . . . 23 . . . Robot Analysis 1 | . 1 . . . . . . Branch Access Points 1 | . 1 . . . . . . Alert Level 1 | . . 1 . . . . . Dispatch Records 1 | . 1 . . . . . . Recall Investigation 1 | . 1 . . . . . . Zone Layout 1 | . . 1 . . . . . Fabricator Hacks . | . . . . . . . . Repair Station Hacks 2 | . . 2 . . . . . Scan Component 1 | . . 1 . . . . . Repair 1 | . . 1 . . . . . Recycling Unit Hacks . | . . . . . . . . Scanalyzer . | . . . . . . . . Garrison Access Hacks . | . . . . . . . . Unauthorized Hacks . | . . . . . . . . Terminals . | . . . . . . . . Fabricators . | . . . . . . . . Repair Stations . | . . . . . . . . Recycling Units . | . . . . . . . . Scanalyzers . | . . . . . . . . Garrison Access . | . . . . . . . . Data Cores Recovered . | . . . . . . . . Used . | . . . . . . . . Hacking Detections 6 | . 4 2 . . . . . Full Trace Events 4 | . 3 1 . . . . . Feedback Events 1 | . . 1 . . . . . Corruption 1 | . . 1 . . . . . Feedback Blocked . | . . . . . . . . Robot Schematics Acquired . | . . . . . . . . Robots Built . | . . . . . . . . Authchips . | . . . . . . . . Time . | . . . . . . . . Total Robot Build Rating . | . . . . . . . . Part Schematics Acquired . | . . . . . . . . Parts Built . | . . . . . . . . Authchips . | . . . . . . . . Time . | . . . . . . . . Total Part Build Rating . | . . . . . . . . Part Studies Acquired . | . . . . . . . . Parts Repaired 1 | . . 1 . . . . . Time 19 | . . 19 . . . . . Parts Recycled . | . . . . . . . . Recycled Matter . | . . . . . . . . Retrieved Matter . | . . . . . . . . Retrieved Components . | . . . . . . . . Parts Scanalyzed . | . . . . . . . . Part Schematics Acquired . | . . . . . . . . Parts Damaged . | . . . . . . . . Bothacking | -11 -10 -9 -9 -9 -8 -8 -7 ------------ Run | Yrd Mat Mat Min Exi Min Mat Fac Used RIF Installer . | . . . . . . . . Robots Hacked . | . . . . . . . . Non-combat . | . . . . . . . . Combat . | . . . . . . . . Robot Hacks Applied . | . . . . . . . . Relay Couplers Released . | . . . . . . . . Fabnet Peak Effective % . | . . . . . . . . Robots Rewired . | . . . . . . . . Allies Hacked . | . . . . . . . . Hacks Repelled . | . . . . . . . . Allies | -11 -10 -9 -9 -9 -8 -8 -7 -------- Run | Yrd Mat Mat Min Exi Min Mat Fac Total Allies . | . . . . . . . . Largest Group . | . . . . . . . . Highest-Rated Group . | . . . . . . . . Highest-Rated Ally . | . . . . . . . . Total Orders . | . . . . . . . . Ally Attacks . | . . . . . . . . Total Damage . | . . . . . . . . Kills . | . . . . . . . . Allies Corrupted . | . . . . . . . . Allies Melted . | . . . . . . . . Intel | -11 -10 -9 -9 -9 -8 -8 -7 ------- Run | Yrd Mat Mat Min Exi Min Mat Fac Active Infowar (turns) 6902 | 143 950 855 1236 1625 1192 353 548 Sensors 4630 | . . . 1166 1625 1192 185 462 Terrain 1755 | 34 796 855 70 . . . . Seismic 3542 | 143 650 785 1236 222 . . 506 T.N.C. 2295 | . . . . 202 1192 353 548 ECM 705 | . . 705 . . . . . Robot Analysis Total 1 | . 1 . . . . . . Derelict Logs Recovered 2 | . . . 2 . . . . Drone Launches . | . . . . . . . . Drone Recoveries . | . . . . . . . . Exploration | -11 -10 -9 -9 -9 -8 -8 -7 ------------- Run | Yrd Mat Mat Min Exi Min Mat Fac Turns Passed 7098 | 276 1013 855 1236 1625 1192 353 548 Spaces Moved 4226 | 182 611 323 903 783 941 211 272 Core 42 | 29 . . . . 6 . 7 Treads . | . . . . . . . . Legs 4063 | 153 611 323 903 783 935 211 144 Wheels 121 | . . . . . . . 121 Hover . | . . . . . . . . Flight . | . . . . . . . . Fastest Speed 50 | 50 120 120 120 90 90 90 90 Average Speed 132 | 108 120 120 120 204 95 144 135 Slowest Speed 1000 | 120 120 120 120 260 1000 170 850 Overloaded Moves 3 | . . . . . . 3 . Propulsion Burnouts . | . . . . . . . . Robots Hopped . | . . . . . . . . Potential Cave-ins 4 | . . . 4 . . . . Cave-ins Triggered . | . . . . . . . . Exploration Rate (%) 50 | 11 63 22 99 85 97 21 6 Regions Visited 7 Branch Regions 3 Pre-discovered Areas 1 | . . . . 1 . . . Known Exits Taken 1 | . . . . . . 1 . Unknown Exits Taken 6 | 1 1 1 1 1 1 . . Scrap Searched 4 | . . . 3 . 1 . . Spaces Dug . | . . . . . . . . Terrain Destroyed 54 | . . . . . . . 54 Melee . | . . . . . . . . Projectile . | . . . . . . . . AOE 54 | . . . . . . . 54 Terrain Rammed . | . . . . . . . . Walls Destroyed . | . . . . . . . . Machines Disabled . | . . . . . . . . Actions | -11 -10 -9 -9 -9 -8 -8 -7 --------- Run | Yrd Mat Mat Min Exi Min Mat Fac Total 5511 | 243 786 759 1030 804 1206 253 430 Wait 921 | 35 57 384 73 . 224 29 119 Move 4219 | 181 610 322 902 782 940 210 272 Hop . | . . . . . . . . Pick Up 71 | 10 13 13 14 7 4 3 7 Fast Attach . | . . . . . . . . Attach 31 | 7 4 6 1 . 2 3 8 Detach 3 | . . . . 1 . . 2 Swap 45 | 2 12 8 10 9 1 1 2 Drop 33 | . 8 6 13 4 1 1 . Fire 164 | 8 64 20 17 . 29 6 20 Melee . | . . . . . . . . Ram . | . . . . . . . . Kick 20 | . 18 . . . 2 . . Crush . | . . . . . . . . Escape Stasis . | . . . . . . . . Rewire 4 | . . . . 1 3 . . Trap . | . . . . . . . . Miscellaneous . | . . . . . . . . Route ------- -11/Scrapyard -10/Materials (discovered 4 exits: *Mat x3 / *Min) -9/Materials (discovered 2 exits: Mat / [*Min]) -9/Mines (discovered 3 exits: *Mat x2 / *Exi) -9/Exiles -8/Mines (discovered 2 exits: *Mat x2) -8/Materials (discovered 2 exits: *Fac x2) -7/Factory History --------- Turn | Location | Event 2 | -11/Scrapyard | Met Revision 17 73 | -11/Scrapyard | Discovered new exit (range 8) 277 | -11/Scrapyard | Entered Materials 316 | -10/Materials | Build established: Mutant 321 | -10/Materials | Discovered new exit (range 16) 426 | -10/Materials | Discovered new exit (range 8) 642 | -10/Materials | Identified exit to Mines 744 | -10/Materials | Discovered new exit (range 13) 1285 | -10/Materials | Discovered new exit (range 3) 1290 | -10/Materials | Entered another Materials area 1290 | -9/Materials | Evolved 2 slots: Utility x2 1986 | -9/Materials | Discovered new exit (range 19) 2057 | -9/Materials | Discovered new exit (range 12) 2100 | -9/Materials | Repaired Minigun 2145 | -9/Materials | Entered Mines 2162 | -9/Mines | Assembled infested the area 2202 | -9/Mines | Met a Derelict bent on vengeance 2234 | -9/Mines | Found a hidden stash of uninstalled traps 2467 | -9/Mines | Learned location of 1 exit from Materials 2572 | -9/Mines | Discovered new exit (range 5) 2699 | -9/Mines | Learned Materials terminal intel 2712 | -9/Mines | Deemed a non-threat by the Exiles lab entrance 2713 | -9/Mines | Discovered new exit (range 5) 2935 | -9/Mines | Joined a pair of Derelicts in attacking an 0b10 outpost 3041 | -9/Mines | Discovered new exit (range 15) 3381 | -9/Mines | Entered Exiles 3429 | -9/Exiles | Discovered new exit (range 15) 3477 | -9/Exiles | Met 8R-AWN 3507 | -9/Exiles | Met EX-HEX 3649 | -9/Exiles | Met EX-DEC 3800 | -9/Exiles | Visited The Gauntlet 4278 | -9/Exiles | Learned location of Zion (-6) 4457 | -9/Exiles | Met EX-BIN 4501 | -9/Exiles | Aligned with FarCom system 4504 | -9/Exiles | Given EX-Vault access code 4785 | -9/Exiles | Opened EX-Vault 4803 | -9/Exiles | Found Prototype Processor 4804 | -9/Exiles | Identified Modified TNC 4811 | -9/Exiles | Found Prototype Leg 4812 | -9/Exiles | Identified Potential Leg 4815 | -9/Exiles | Found Potential Leg 4819 | -9/Exiles | Found Prototype Energy Cannon 4826 | -9/Exiles | Identified Gui. Plasma Cannon 4858 | -9/Exiles | Warned to stay clear of 0b10 Research branches 5006 | -9/Exiles | Stole three prototypes: Potential Leg, Modified TNC, Gui. Plasma Cannon 5006 | -9/Exiles | Entered Mines 5321 | -8/Mines | Discovered new exit (range 6) 5907 | -8/Mines | Discovered new exit (range 16) 6198 | -8/Mines | Entered Materials 6198 | -8/Materials | Evolved 2 slots: Utility x1, Weapon x1 6199 | -8/Materials | Identified exit to Factory 6200 | -8/Materials | Loaded intel: 12 terminal locations 6535 | -8/Materials | Discovered exit to Factory (range 16) 6551 | -8/Materials | Entered Factory 6551 | -7/Factory | Evolved 2 slots: Power x1, Utility x1 6553 | -7/Factory | FarCom data flow suspended 6573 | -7/Factory | Lost 3 parts (1p1u1w) 7033 | -7/Factory | Garrison activated, responded to threat 7084 | -7/Factory | Core integrity fell below 50% 7094 | -7/Factory | Core integrity fell below 20% 7099 | -7/Factory | Destroyed by H-55 Commando with Assault Rifle Last Messages --------------- 07090_ Penetrated by Slug. 07090_ U-05 Engineer lays Concrete. 07091_ U-05 Engineer builds a Wall. 07091_ U-05 Engineer lays Concrete. 07092_ Slug penetrates Fabricator. 07092_ U-05 Engineer builds a Wall. 07093_ U-05 Engineer lays Concrete. 07093_ Penetrated by Slug. 07094_ U-05 Engineer lays Concrete. 07095_ Fabricator collapses. 07095_ U-05 Engineer lays Concrete. 07095_ U-05 Engineer builds a Wall. 07096_ Penetrated by Slug. 07096_ U-05 Engineer builds a Wall. 07096_ U-05 Engineer lays Concrete. 07098_ Penetrated by Slug. 07098_ U-05 Engineer lays Concrete. 07098_ W-25 Informer sends out distress signal. 07099_ Slug penetrates Wall. [Achievement: 5k Club] Map ----- +----------------------------------------------------+ | ?????????????????????????????????????????????????? | | ?????????????????????????????????????????????????? | | ?????????????????????????????????????????????????? | | ?????????????????????????????????????????????????? | | ??????????????? ?????????????????????????????? | | ??????????????# #????????????????????????????? | | ??????????????# #? ??????????????????????????? | | ??????????????# # ??????????????????????????? | | ??????????????# # ???????????????????????????? | | ??????????????+ +????????????????????????????? | | ??????????????# #????????????????????????????? | | ??????????????# #????????????????????????????? | | ???????######## #????????????????????????????? | | ???????# #????????????????????????????? | | ???????# ^ #????????????????????????????? | | ???????# #????????????????????????????? | | ???????# ^ ##?????##########????????????? | | ???????# ^ ####### #????????????? | | ???????# * """"#????????????? | | ???##### ^ w###### """"#????????????? | | =%[ """#????????????? | | % * # """"#????????????? | | """ """ """ "" "" u# """#????????????? | | ?"" """ """ """ ""F"hhu# ""#????????????? | | ????""" """ """ " "" " # """#????????????? | | Y =%%@%! #????????????? | | ??? """ """ """ |!**!=# # ################ | | ??" """ """ """ =*%*%[ | | """ """ """ """ = *=* | | [[[ | | [[[ u | | t [[ | | ##########+##############;### ## ########### | | ?????????????????????# # # ! # | | ?????????????????????# #####?## # # | | ?????????????????????# #??????# # # | | ?????????????????????# """""" #??????# # # | | ?????????????????????# """""" #??????# # [ ] + | | ?????????????????????# """""" #??????# # # | | ?????????????????????# """""" #??????# # # | | ?????????????????????# #??????# # # | | ?????????????????????# ] ! #??????# ########### | | ?????????????????????##########??????# #?????????# | | ?????????????????????????????????????? ??????????# | | ?????????????????????????????????????? ??????????# | | ?????????????????????????????????????? ??????????# | | ??????????????????????????????????????+??????????# | | ?????????????????????????????????????? ??????????# | | ??????????????????????????????????????"??????????# | | ?????????????????????????????????????????????????# | +----------------------------------------------------+ Best States ------------- Heat Dissipation 48 Energy Generation 18 Energy Capacity 250 Matter Stores 300 Matter Capacity 300 Sight Range 16 Robot Scan Range 14 Terrain Scan Range 16 Terrain Scan Density 10 ECM Strength 1 Armor Coverage 150 Propulsion Shielding 33 Evasion (%) 57 Targeting Accuracy 5 Item Schematics ----------------- None Robot Schematics ------------------ None Fabricated ------------ Nothing Repaired ---------- Minigun | 28% | -9/Materials Studied --------- None Alien Tech Used ----------------- None Achievements -------------- 5k Club Crack Shot DATA ERROR: Steam Global Achievement% It's Just You Librarian Loot Pinata Made in Tau Ceti IV Morally Flexible Power Corrupts Risk Taker Serviceable Loadout Sixth Sense Sprinter That Tickles Thread The Needle Around The Corner Troublemaker Challenges ------------ None Game ------ Seed TrapSystemBiocell Manual? 0 Play Time 01:37:38 Cumulative 3.1 hours Start 2025.12.30 @ 23:36:01 End 2025.12.31 @ 01:41:14 Sessions 1 Manual Loads 0 Difficulty Rogue Special Mode None Game No. 2 Rogue 2 Adventurer 0 Explorer 0 Win Type - Total 0 Types 0/0/0/0/0/0/0/0/0/0 Lore% 4 Gallery% 5 Achievement% 8 Wizard Run 0 Options --------- Layout 1 ASCII 0 Keyboard 0 Movement Arrows Keybinds 0 Fullscreen 2 Font 24/Crisp Map View 50x35 Zoom Use 0% Tactical HUD 1 Map Filters NONE Filters NONE Steam 1 RUN: 31c635ef-915f-4f46-b0ec-44a5e835c7c9